Cogmind - Beta 16.1 @@@ ROGUE MODE // 2026.02.23 @ 03:28:21 Player: Scared Dad Result: Destroyed by QK-2U4(R) with Subdweller Laser Performance ------------- Evolutions (0) 0 Regions Visited (3) 600 Robots Destroyed (15) 75 Value Destroyed (560) 560 Prototype IDs (0) 0 Alien Tech Used (0) 0 Bonus (74) 74 TOTAL SCORE: 1309 Bonus ------- Follower Combat Kills 74 Cogmind --------- Core Integrity 0/250 Matter 200/300 Energy 198/200 System Corruption 0% Temperature Cool (6) Movement Rolling (90) Location -10/Subcaves Parts ------- > --- POWER (1) -------- Subdweller Power Source > --- PROPULSION (2) --- Armored Wheel Armored Wheel > --- UTILITY (2) ------ Medium Storage Unit Subdweller Optics > --- WEAPON (2) ------- Riot Gun Makeshift Shrapnel Gun > --- INVENTORY (10) --- Light Treads Light Treads Improved Targeting Computer Hardened Medium Armor Plating Makeshift Light Armor Plating Pulse Rifle Subdweller Machine Gun Mining Laser Multitool Peak State ------------ > --- POWER ------------ Subdweller Power Source > --- PROPULSION ------- Armored Wheel Armored Wheel > --- UTILITY ---------- Medium Storage Unit Hardened Medium Armor Plating > --- WEAPON ----------- Riot Gun Makeshift Shrapnel Gun > --- INVENTORY -------- Light Treads Light Treads Improved Signal Interpreter Improved Targeting Computer Makeshift Light Armor Plating Pulse Rifle Subdweller Machine Gun Mining Laser Multitool [Rating: 18] Favorites ----------- Power Ion Engine Engine Ion Engine Propulsion Armored Wheel Treads Light Treads Wheel Armored Wheel Utility Medium Storage Unit Device Sensor Array Storage Medium Storage Unit Processor Signal Interpreter Protection Hardened Medium Armor Plating Weapon Assault Rifle Energy Gun Particle Gun Ballistic Gun Assault Rifle Special Weapon Mining Laser Build | -11 -10 -10 -10 ------- Run | Yrd Mat Min Sub Slots Evolved . | . . . . Power . | . . . . Propulsion . | . . . . Utility . | . . . . Weapon . | . . . . Parts Attached 30 | 9 6 6 9 Power 5 | 1 1 2 1 Engine 5 | 1 1 2 1 Core . | . . . . Reactor . | . . . . Propulsion 8 | 4 2 2 . Treads 2 | 2 . . . Leg . | . . . . Wheel 6 | 2 2 2 . Hover . | . . . . Flight . | . . . . Utility 6 | 1 2 1 2 Device 2 | . 1 . 1 Storage 2 | 1 1 . . Processor 1 | . . 1 . Hackware . | . . . . Protection 1 | . . . 1 Artifact . | . . . . Weapon 11 | 3 1 1 6 Energy Gun 4 | 1 . 1 2 Energy Cannon . | . . . . Ballistic Gun 6 | 2 1 . 3 Ballistic Cannon . | . . . . Launcher . | . . . . Special Weapon 1 | . . . 1 Impact Weapon . | . . . . Slashing Weapon . | . . . . Piercing Weapon . | . . . . Special Melee Weapon . | . . . . Unidentified Prototypes . | . . . . Parts Lost 6 | . . 4 2 Power 2 | . . 1 1 Propulsion 1 | . . 1 . Utility 1 | . . 1 . Weapon 2 | . . 1 1 Highest Loss Streak 3 | . . 3 1 To Critical Strikes . | . . . . Average Backups 8 | 4 7 8 9 Power . | . . . . Propulsion 2 | 2 2 2 2 Utility 2 | . 1 2 3 Weapon 3 | . 2 3 3 Tool/Special . | . . . . Unused Backups 9 | . 2 . 7 Power . | . . . . Propulsion 2 | . 2 . . Utility 4 | . . . 4 Weapon 2 | . . . 2 Tool/Special 1 | . . . 1 Average Slot Usage (%) 96 | . 96 96 96 Engine 12 | . 14 13 11 Treads 1 | . . 4 . Wheel 26 | . 28 23 28 Device 3 | . 10 1 1 Storage 14 | . 14 14 14 Processor 8 | . . 12 10 Protection 1 | . . . 2 Energy Gun 8 | . . 12 9 Ballistic Gun 16 | . 28 12 13 Special Weapon 2 | . . . 4 Peak Build Rating 18 | 6 10 11 18 Average Rating 10 | 4 6 9 13 On Entrance 6 | . 6 10 10 Avg Prop Armor Cover (%) . | . . . . Naked Turns . | . . . . Heaviest Build 28 | 13 19 19 28 Greatest Support 40 | 40 32 40 24 Greatest Overweight (x) 1 | . . 1 1 Average Overweight (x) . | . . . . Largest Inventory Capacity 10 | 8 10 10 10 Average Capacity 9 | 6 8 10 10 Most Carried 10 | 7 10 10 10 Average Carried 8 | 4 7 8 9 Final Capacity 10 | 8 10 10 10 Final Carried 10 | 6 10 10 9 Class Distribution -------------------- 100% | Mutant Dominant Class ---------------- Mutant | -10/Materials Mutant | -10/Mines Mutant | -10/Subcaves Resources | -11 -10 -10 -10 ----------- Run | Yrd Mat Min Sub Matter Collected 711 | 145 268 186 112 Remotely . | . . . . Salvage Created 571 | . 315 166 90 Parts 28 | . 16 5 7 Haulers Intercepted . | . . . . Recyclers Shooed . | . . . . Parts Field Recycled . | . . . . Retrieved Matter . | . . . . Parts Self-Destructed 13 | . . . 13 Prevented . | . . . . Parts Restored . | . . . . Kills | -11 -10 -10 -10 ------- Run | Yrd Mat Min Sub Combat Hostiles Destroyed 15 | . 8 4 3 Guns 15 | . 8 4 3 Classes Destroyed 3 | . 1 . 2 Swarmer 1 | . . . 1 Grunt 12 | . 8 4 . Subdweller 2 | . . . 2 Best Kill Streak 3 | . 3 2 1 Combat Bots Only 3 | . 3 2 1 Max Kills in Single Turn 1 | . 1 1 1 Gunslinging . | . . . . Exploded . | . . . . Melee . | . . . . Uniques/NPCs Destroyed . | . . . . Combat | -11 -10 -10 -10 -------- Run | Yrd Mat Min Sub Hostile Shots Fired 132 | . 39 35 58 Missed 38 | . 7 8 23 Hits 94 | . 32 27 35 Projectile 94 | . 32 27 35 AOE 3 | . . . 3 Critical Strikes 1 | . . 1 . Damage Taken 1472 | . 397 433 642 Core 271 | . 77 78 116 Absorbed by Shields . | . . . . Core Remaining (%) 100 | 100 . . . Volleys Fired 104 | . 26 25 53 Largest 2 | . 2 2 2 Hottest 100 | . 40 85 100 Shots Fired 171 | . 52 50 69 Gun 135 | . 52 50 33 Cannon . | . . . . Launcher . | . . . . Special 36 | . . . 36 Kinetic 108 | . 52 29 27 Thermal 58 | . . 21 37 Explosive . | . . . . Electromagnetic 5 | . . . 5 Robot Hit Streak 13 | . 8 12 13 Robot Miss Streak 4 | . 3 3 4 Penetration Max . | . . . . Secondary Targets . | . . . . Shots Hit Robots 95 | . 36 35 24 Core Hits 36 | . 18 12 6 Critical Kills . | . . . . Critical Parts Destroyed . | . . . . Critical Strikes . | . . . . Melee Attacks . | . . . . Impact . | . . . . Slashing . | . . . . Piercing . | . . . . Sneak Attacks . | . . . . Combat Hostiles . | . . . . Follow-up Attacks . | . . . . Damage Inflicted 1027 | . 415 406 206 Guns 1027 | . 415 406 206 Cannons . | . . . . Explosions . | . . . . Melee . | . . . . Ramming . | . . . . Kinetic 780 | . 415 168 197 Thermal 238 | . . 238 . Explosive . | . . . . Electromagnetic 9 | . . . 9 Impact . | . . . . Slashing . | . . . . Piercing . | . . . . Highest Corruption . | . . . . Average Corruption . | . . . . Corruption Purged . | . . . . Corruption Blocked . | . . . . Overload Shots . | . . . . Overflow Damage . | . . . . Projectiles . | . . . . Explosions . | . . . . Melee . | . . . . Knockbacks . | . . . . Impact . | . . . . Kinetic . | . . . . Secondary . | . . . . Self-Inflicted Damage . | . . . . Shots . | . . . . Rammed . | . . . . Targets Rammed . | . . . . Kicked . | . . . . Crushed . | . . . . Highest Temperature 339 | . 12 339 . Average Temperature 109 | . 4 131 . Received Heat Transfer 618 | . 225 243 150 Effects 3 | . . 3 . Interference 3 | . . 3 . Siege Activations . | . . . . Martial Activations . | . . . . Shielding Activations . | . . . . Robots Disrupted . | . . . . Combat Hostiles . | . . . . Robots Corrupted . | . . . . Combat Hostiles . | . . . . Parts Fried . | . . . . Impact Corruptions . | . . . . Robots Melted . | . . . . Combat Hostiles . | . . . . Parts Melted 1 | . . 1 . Heat Transferred 555 | . . 555 . Parts Sabotaged . | . . . . Parts Stolen . | . . . . Parts Stripped . | . . . . Power Chain Reactions . | . . . . Alert | -11 -10 -10 -10 ------- Run | Yrd Mat Min Sub Maximum Alert Level . | . . . . Low Security (%) 100 | 100 100 100 . Level 1 . | . . . . Level 2 . | . . . . Level 3 . | . . . . Level 4 . | . . . . Level 5 . | . . . . High Security . | . . . . Max Security . | . . . . Peak Influence 160 | . 160 55 . Initial 55 | . . 55 . Average 28 | . 60 7 . Influence Increases 599 | . 299 100 200 Destroy 0b10 Robot/C 300 | . 160 80 60 Destroy Leader 60 | . 40 20 . Allied During Kill 5 | . . . 5 Successful Hack 24 | . 24 . . Disable Machine 15 | . 15 . . Lose Combat Pursuer 195 | . 60 . 135 Influence Decreases 573 | . 155 244 174 Entered New Map 89 | . . 89 . Time Decay 389 | . 155 120 114 Lost Part 55 | . . 35 20 Lost Ally 40 | . . . 40 Squads Dispatched 2 | . 2 . . Investigation 1 | . 1 . . Extermination . | . . . . Reinforcement 1 | . 1 . . Assault . | . . . . Garrison . | . . . . Intercept . | . . . . Searches Triggered . | . . . . Construction Impeded . | . . . . Haulers Reinforced . | . . . . Active Scanning Responses . | . . . . Cargo Convoy Interrupts . | . . . . Stealth | -11 -10 -10 -10 --------- Run | Yrd Mat Min Sub Distress Signals 3 | . 3 . . Communications Jammed . | . . . . Distress Signals . | . . . . Times Spotted 36 | . 16 6 14 Peak Tracking Total 6 | . 5 2 6 Tactical Retreats 6 | . 2 . 4 Traps | -11 -10 -10 -10 ------- Run | Yrd Mat Min Sub Traps Triggered 2 | . 1 1 . Indirectly . | . . . . Trap Hack Attempts . | . . . . Triggered . | . . . . Disarmed . | . . . . Reprogrammed 4 | . 4 . . Reused . | . . . . Traps Extracted . | . . . . Installed . | . . . . Triggered . | . . . . Machines | -11 -10 -10 -10 ---------- Run | Yrd Mat Min Sub Machines Disabled 1 | . 1 . . Max in Single Turn 1 | . 1 . . Machines Repaired . | . . . . Machines Dismantled . | . . . . Machines Sabotaged . | . . . . Overloaded Fab Kills . | . . . . Hacking | -11 -10 -10 -10 --------- Run | Yrd Mat Min Sub Machines Accessed 12 | . 7 2 3 Terminals 6 | . 5 1 . Fabricators . | . . . . Repair Stations . | . . . . Recycling Units 2 | . 2 . . Scanalyzers . | . . . . Garrison Access . | . . . . Total Hacks 43 | . 28 8 7 Successful 27 | . 13 7 7 Failed 16 | . 15 1 . Catastrophic 1 | . 1 . . Database Lockouts . | . . . . Manual . | . . . . Terminals 30 | . 23 7 . Fabricators . | . . . . Repair Stations . | . . . . Recycling Units 5 | . 5 . . Scanalyzers . | . . . . Garrison Access . | . . . . Terminal Hacks 26 | . 12 7 7 Record 11 | . 3 3 5 Open Door 2 | . . 1 1 Branch Access Points 1 | . 1 . . Emergency Access Points 1 | . 1 . . Terminal Index 1 | . 1 . . Locate Traps 3 | . 3 . . Reprogram Traps 1 | . 1 . . Dispatch Records 2 | . . 2 . Zone Layout 3 | . 2 1 . Release Object 1 | . . . 1 Fabricator Hacks . | . . . . Repair Station Hacks . | . . . . Recycling Unit Hacks 1 | . 1 . . Retrieve Components 1 | . 1 . . Scanalyzer . | . . . . Garrison Access Hacks . | . . . . Unauthorized Hacks . | . . . . Terminals . | . . . . Fabricators . | . . . . Repair Stations . | . . . . Recycling Units . | . . . . Scanalyzers . | . . . . Garrison Access . | . . . . Data Cores Recovered . | . . . . Used . | . . . . Hacking Detections 7 | . 6 1 . Full Trace Events . | . . . . Feedback Events . | . . . . Feedback Blocked . | . . . . Robot Schematics Acquired . | . . . . Robots Built . | . . . . Authchips . | . . . . Time . | . . . . Total Robot Build Rating . | . . . . Part Schematics Acquired . | . . . . Parts Built . | . . . . Authchips . | . . . . Time . | . . . . Total Part Build Rating . | . . . . Part Studies Acquired . | . . . . Parts Repaired . | . . . . Time . | . . . . Parts Recycled . | . . . . Recycled Matter . | . . . . Retrieved Matter . | . . . . Retrieved Components 7 | . 7 . . Parts Scanalyzed . | . . . . Part Schematics Acquired . | . . . . Parts Damaged . | . . . . Bothacking | -11 -10 -10 -10 ------------ Run | Yrd Mat Min Sub Used RIF Installer . | . . . . Robots Hacked . | . . . . Non-combat . | . . . . Combat . | . . . . Robot Hacks Applied . | . . . . Relay Couplers Released . | . . . . Fabnet Peak Effective % . | . . . . Robots Rewired . | . . . . Allies Hacked . | . . . . Hacks Repelled . | . . . . Allies | -11 -10 -10 -10 -------- Run | Yrd Mat Min Sub Total Allies 3 | . . 3 . Largest Group 3 | . . 3 3 Highest-Rated Group 40 | . . 40 40 Highest-Rated Ally 16 | . . 16 16 Total Orders . | . . . . Ally Attacks 15 | . . . 15 Total Damage 118 | . . . 118 Kills 4 | . . . 4 Allies Corrupted . | . . . . Allies Melted . | . . . . Intel | -11 -10 -10 -10 ------- Run | Yrd Mat Min Sub Active Infowar (turns) 662 | . 505 72 85 Optics 85 | . . . 85 Sensors 577 | . 505 72 . Robot Analysis Total . | . . . . Derelict Logs Recovered 4 | . . 2 2 Drone Launches . | . . . . Drone Recoveries . | . . . . Exploration | -11 -10 -10 -10 ------------- Run | Yrd Mat Min Sub Turns Passed 2801 | 70 636 930 1165 Spaces Moved 2330 | 42 500 772 1016 Core 11 | 11 . . . Treads 97 | 16 . 81 . Legs . | . . . . Wheels 2222 | 15 500 691 1016 Hover . | . . . . Flight . | . . . . Fastest Speed 50 | 50 90 90 90 Average Speed 94 | 109 99 97 90 Slowest Speed 160 | 160 100 160 105 Overloaded Moves . | . . . . Propulsion Burnouts . | . . . . Robots Hopped . | . . . . Potential Cave-ins . | . . . . Cave-ins Triggered . | . . . . Exploration Rate (%) 55 | 4 76 91 51 Regions Visited 3 Branch Regions 2 Pre-discovered Areas 2 | . . . 2 Known Exits Taken 2 | . 1 1 . Unknown Exits Taken 1 | 1 . . . Scrap Searched 3 | . . 1 2 Spaces Dug . | . . . . Terrain Destroyed . | . . . . Melee . | . . . . Projectile . | . . . . AOE . | . . . . Terrain Rammed . | . . . . Walls Destroyed . | . . . . Machines Disabled . | . . . . Actions | -11 -10 -10 -10 --------- Run | Yrd Mat Min Sub Total 2680 | 64 587 904 1125 Wait 152 | . 36 89 27 Move 2327 | 41 499 771 1016 Hop . | . . . . Pick Up 41 | 13 12 7 9 Fast Attach . | . . . . Attach 15 | 6 1 4 4 Detach . | . . . . Swap 21 | 3 6 4 8 Drop 19 | 1 7 4 7 Fire 104 | . 26 25 53 Melee . | . . . . Ram . | . . . . Kick . | . . . . Crush . | . . . . Escape Stasis . | . . . . Rewire . | . . . . Trap . | . . . . Miscellaneous 1 | . . . 1 Route ------- -11/Scrapyard -10/Materials (discovered 3 exits: *Mat x2 / *Min) -10/Mines (discovered 3 exits: *Mat x2 / *Sub) -10/Subcaves (discovered 2 exits: [*Mat] / [*Rec]) History --------- Turn | Location | Event 4 | -11/Scrapyard | Discovered new exit (range 15) 71 | -11/Scrapyard | Entered Materials 133 | -10/Materials | Discovered new exit (range 7) 173 | -10/Materials | Discovered new exit (range 15) 318 | -10/Materials | Build established: Mutant 561 | -10/Materials | Identified exit to Mines 565 | -10/Materials | Discovered new exit (range 16) 707 | -10/Materials | Entered Mines 719 | -10/Mines | Met a Derelict bent on vengeance 765 | -10/Mines | Learned Materials security intel 812 | -10/Mines | Discovered new exit (range 13) 816 | -10/Mines | Lost 3 parts (1p1u1w) 822 | -10/Mines | Identified exit to Subcaves 913 | -10/Mines | Discovered new exit (range 8) 919 | -10/Mines | Identified exit to Materials 929 | -10/Mines | Learned Materials garrison access intel 966 | -10/Mines | Core integrity fell below 50% 1164 | -10/Mines | Discovered exit to Materials (range 13) 1174 | -10/Mines | Assisted by bots powering up and referring to "LRC-V3" 1469 | -10/Mines | Met a Derelict who couldn't figure out how to use a Trap Extractor 1637 | -10/Mines | Entered Subcaves 1637 | -10/Subcaves | Accompanied by 3 allies 1639 | -10/Subcaves | Learned location of Zion (-7) 1650 | -10/Subcaves | A swath of the cavern ceiling suddenly collapsed 1744 | -10/Subcaves | Curiously followed by a Cobbler waking with a query about "LVR3C" 1935 | -10/Subcaves | Released subatomizers from SUBCON Basin 2454 | -10/Subcaves | Discovered new exit (range 14) 2487 | -10/Subcaves | Shifting Twisted Machinery released Riot Gun 2493 | -10/Subcaves | Core integrity fell below 20% 2501 | -10/Subcaves | Shifting Twisted Machinery released Mak. Light Armor Plating 2564 | -10/Subcaves | Shifting Twisted Machinery released Battle Cannon 2567 | -10/Subcaves | Shifting Twisted Machinery released Sub. Beam Cannon 2739 | -10/Subcaves | Discovered new exit (range 20) 2750 | -10/Subcaves | Visited Clippyterm 2753 | -10/Subcaves | Learned location of Section 7 (-2) 2753 | -10/Subcaves | Learned Research security intel 2802 | -10/Subcaves | Destroyed by QK-2U4(R) with Subdweller Laser Last Messages --------------- data I collect to feed it, half the time it still manages to suggest unhelpful sample queries and responses. --DD-NU8 >>Record! "World Domination" It looks like you're trying to take over the world, would you like help? World map updated: -2/Section 7. >>Record "0b10 Defenses" It looks like you're afraid of guards, would you like help? Data stored: Research security intel. >>Record "Botnets" It looks like you seek to become a more effective hacker when it comes to the important hacks, and I heartily recommend installing Trojan(Botnet) on at least one or two Terminals to improve your odds of success elsewhere. 02795_ ST-XC3(R) emerges from the Twisted Machinery. Map ----- +----------------------------------------------------+ | ???????????????????????????????????????????????? | | ???????????????????????????????????????????????? | | ???????????????????????????????????????????????? | | ???????????????????????????????????????????????? | | ???????????????????????????????????????????????? | | ???????????????????????????????????????????????? | | ???????????????????????????????????????????????? | | ???????????????????????????????????????????????? | | ???????????????????????????????????????????????? | | ???????????????????????????????????????????????? | | ???????????????????????????????????????????????? | | ???????????????????????????????????????????????? | | ????????????????????????##?????????????????????? | | ???????????????????????? ##????????????????????? | | ????????????????????????" #????????????????????? | | ????????????????????????" #????????????????????? | | ????????????????????????" ##???????????????????? | | ???????????????????????? ????????????????????? | | ???????????????????????? ????????????????????? | | ???????????????????????? R#????????????????????? | | ??????????????????????##R ?????????????????????? | | ?????????????????????## ?????????????????????? | | ??????????????????????" #?????????????????????? | | ??????????????????????"< #?????????????????????? | | ??????????????????????# #?????????????????????? | | ??????????????????????#@ ##????????????????????? | | ??????????????????????# #????????????????????? | | ?????????????????????## ##????????????????????? | | ?????????????????????# #?????????????????????? | | ?????????????????????# #?????????????????????? | | ?????????????????????# #?????????????????????? | | ????????????########## ##????????????????????? | | ????????????#"""## #????????????????????? | | ????????????#"" ## ##???????????????????? | | ????????????#"X #???????????????????? | | ????????????#"" ## ##???????????????????? | | ????????????#"""### #????????????????????? | | ????????????##### #????????????????????? | | ????????????????# O ##???????????????????? | | ???????????????## ##??????????????????? | | ??????????????## ##???###???????????? | | ??????????????# ##?## #???????????? | | ??????????????# ### ## ### #???????????? | | ??????????????###?## ### # ##??????????# | | ??????????????????# ## ### ####??????## | | ??????????????????# ### #?????## | | ?????????????????## ##???## | | ?????????????????# ##### | | ????????????????## ## ## ## | | ???????????????## ### #### ## | +----------------------------------------------------+ Best States ------------- Heat Dissipation 25 Energy Generation 15 Energy Capacity 250 Matter Stores 300 Matter Capacity 300 Sight Range 21 Robot Scan Range 14 Terrain Scan Density 10 Armor Coverage 225 Evasion (%) 42 Recoil Reduction 2 Item Schematics ----------------- None Robot Schematics ------------------ None Fabricated ------------ Nothing Repaired ---------- Nothing Studied --------- None Alien Tech Used ----------------- None Achievements -------------- None Challenges ------------ None Game ------ Seed TransportHackingAssimilator Manual? 0 Play Time 00:31:34 Cumulative 110.3 hours Start 2026.02.23 @ 02:57:41 End 2026.02.23 @ 03:28:21 Sessions 1 Manual Loads 0 Difficulty Rogue Special Mode None Game No. 134 Rogue 134 Adventurer 0 Explorer 0 Win Type - Total 0 Types 0/0/0/0/0/0/0/0/0/0 Lore% 49 Gallery% 46 Achievement% 30 Wizard Run 0 Options --------- Layout 2 ASCII 0 Keyboard 0 Movement Numpad Keybinds 0 Fullscreen 1 Font 24/Smallcaps Map View 50x44 Zoom Use 0% Tactical HUD 1 Map Filters NONE Filters NONE Steam 1 RUN: 6fc8f72f-232d-46ce-8492-5d21b5b7efca